[Event "January 9 Early 2024"]
[Site "https://www.chess.com"]
[Date "2024.01.11"]
[Round "10"]
[White "Yurovskykh, Oleksandr"]
[Black "Weetik, Vjacheslav"]
[Result "1-0"]
[Board "106"]
[TimeControl "180+1"]
[WhiteFideId "14134020"]
[BlackFideId "4153472"]
[WhiteElo "2638"]
[BlackElo "2743"]
[WhiteTeam "UKR"]
[BlackTeam "RUS"]
[WhiteClock "0:00:17"]
[BlackClock "0:00:01"]

1. d4 {[%clk 0:03:00]}  Nf6 {[%clk 0:02:59]} 2. Nf3 {[%clk 0:02:58]}  e6 {[%clk 0:02:59]} 3. Bf4 {[%clk 0:02:57]}  d5 {[%clk 0:02:58]} 4. e3 {[%clk 0:02:57]}  c5 {[%clk 0:02:58]} 5. c3 {[%clk 0:02:57]}  Bd6 {[%clk 0:02:58]} 6. Bg3 {[%clk 0:02:57]}  O-O {[%clk 0:02:58]} 7. Nbd2 {[%clk 0:02:58]}  Qc7 {[%clk 0:02:57]} 8. dxc5 {[%clk 0:02:56]}  Qxc5 {[%clk 0:02:56]} 9. Bd3 {[%clk 0:02:56]}  Nbd7 {[%clk 0:02:54]} 10. Qe2 {[%clk 0:02:56]}  Bxg3 {[%clk 0:02:44]} 11. hxg3 {[%clk 0:02:56]}  h6 {[%clk 0:02:45]} 12. e4 {[%clk 0:02:55]}  dxe4 {[%clk 0:02:27]} 13. Bxe4 {[%clk 0:02:50]}  Rd8 {[%clk 0:02:18]} 14. O-O-O {[%clk 0:02:49]}  Qa5 {[%clk 0:01:54]} 15. Kb1 {[%clk 0:02:47]}  Nc5 {[%clk 0:01:44]} 16. Bc2 {[%clk 0:02:46]}  Qc7 {[%clk 0:01:41]} 17. Ne5 {[%clk 0:02:15]}  b6 {[%clk 0:01:34]} 18. g4 {[%clk 0:02:12]}  Ba6 {[%clk 0:01:34]} 19. c4 {[%clk 0:01:59]}  Bb7 {[%clk 0:01:16]} 20. f4 {[%clk 0:01:55]}  Nfd7 {[%clk 0:00:31]} 21. g5 {[%clk 0:01:51]}  Nxe5 {[%clk 0:00:32]} 22. fxe5 {[%clk 0:01:50]}  Rd4 {[%clk 0:00:18]} 23. gxh6 {[%clk 0:01:46]}  g6 {[%clk 0:00:18]} 24. Nf3 {[%clk 0:01:42]}  Rxd1+ {[%clk 0:00:17]} 25. Rxd1 {[%clk 0:01:42]}  Rd8 {[%clk 0:00:15]} 26. Rh1 {[%clk 0:01:36]}  Bxf3 {[%clk 0:00:12]} 27. gxf3 {[%clk 0:01:30]}  Qe7 {[%clk 0:00:11]} 28. f4 {[%clk 0:01:28]}  Kh7 {[%clk 0:00:11]} 29. a3 {[%clk 0:00:53]}  a5 {[%clk 0:00:11]} 30. Qg2 {[%clk 0:00:29]}  Rd4 {[%clk 0:00:07]} 31. Rg1 {[%clk 0:00:29]}  Qe8 {[%clk 0:00:04]} 32. Qg5 {[%clk 0:00:29]}  Ne4 {[%clk 0:00:03]} 33. Bxe4 {[%clk 0:00:26]}  Rxe4 {[%clk 0:00:03]} 34. Qf6 {[%clk 0:00:26]}  Qg8 {[%clk 0:00:04]} 35. Rc1 {[%clk 0:00:21]}  Rd4 {[%clk 0:00:03]} 36. c5 {[%clk 0:00:20]}  bxc5 {[%clk 0:00:03]} 37. Rxc5 {[%clk 0:00:21]}  Rd7 {[%clk 0:00:03]} 38. Rc8 {[%clk 0:00:17]}  Rd1+ {[%clk 0:00:01]} 39. Ka2 {[%clk 0:00:17]} 1-0

[Event "January 9 Early 2024"]
[Site "https://www.chess.com"]
[Date "2024.01.11"]
[Round "10"]
[White "Chemin, Justo Reinaldo"]
[Black "Buscar, Michael"]
[Result "0-1"]
[Board "107"]
[TimeControl "180+1"]
[WhiteFideId "2101580"]
[BlackFideId "2603616"]
[WhiteElo "2244"]
[BlackElo "2421"]
[WhiteTeam "BRA"]
[BlackTeam "CAN"]
[WhiteClock "0:00:02"]
[BlackClock "0:00:17"]

1. d4 {[%clk 0:03:00]}  Nf6 {[%clk 0:02:55]} 2. Bf4 {[%clk 0:03:00]}  c5 {[%clk 0:02:55]} 3. e3 {[%clk 0:03:00]}  Qb6 {[%clk 0:02:53]} 4. b3 {[%clk 0:02:57]}  cxd4 {[%clk 0:02:52]} 5. exd4 {[%clk 0:02:56]}  d5 {[%clk 0:02:50]} 6. Nd2 {[%clk 0:02:54]}  Bg4 {[%clk 0:02:50]} 7. Ndf3 {[%clk 0:02:47]}  e6 {[%clk 0:02:47]} 8. c3 {[%clk 0:02:41]}  Ne4 {[%clk 0:02:44]} 9. Rc1 {[%clk 0:02:20]}  Ba3 {[%clk 0:02:33]} 10. Rc2 {[%clk 0:02:19]}  Nd7 {[%clk 0:02:33]} 11. Bd3 {[%clk 0:02:17]}  Rc8 {[%clk 0:02:29]} 12. Ne2 {[%clk 0:02:16]}  Bxf3 {[%clk 0:02:12]} 13. gxf3 {[%clk 0:02:15]}  Nef6 {[%clk 0:02:13]} 14. O-O {[%clk 0:02:08]}  Bd6 {[%clk 0:02:11]} 15. Be3 {[%clk 0:02:00]}  Qc7 {[%clk 0:02:05]} 16. f4 {[%clk 0:01:48]}  Nh5 {[%clk 0:02:01]} 17. Qd2 {[%clk 0:01:44]}  Ndf6 {[%clk 0:01:49]} 18. c4 {[%clk 0:01:41]}  Qb8 {[%clk 0:01:39]} 19. c5 {[%clk 0:01:36]}  Bc7 {[%clk 0:01:37]} 20. Bb5+ {[%clk 0:01:36]}  Ke7 {[%clk 0:01:34]} 21. c6 {[%clk 0:01:21]}  Ne4 {[%clk 0:01:26]} 22. Qb4+ {[%clk 0:01:04]}  Bd6 {[%clk 0:01:25]} 23. Qa4 {[%clk 0:01:05]}  a6 {[%clk 0:01:18]} 24. Bd3 {[%clk 0:00:58]}  Nxf4 {[%clk 0:00:55]} 25. Bxe4 {[%clk 0:00:39]}  Nxe2+ {[%clk 0:00:51]} 26. Rxe2 {[%clk 0:00:38]}  dxe4 {[%clk 0:00:51]} 27. cxb7 {[%clk 0:00:32]}  Qxb7 {[%clk 0:00:47]} 28. Qa5 {[%clk 0:00:23]}  Qb5 {[%clk 0:00:42]} 29. Qxb5 {[%clk 0:00:20]}  axb5 {[%clk 0:00:42]} 30. f3 {[%clk 0:00:15]}  exf3 {[%clk 0:00:38]} 31. Rxf3 {[%clk 0:00:15]}  f6 {[%clk 0:00:33]} 32. d5 {[%clk 0:00:15]}  exd5 {[%clk 0:00:25]} 33. Bf4+ {[%clk 0:00:08]}  Kd7 {[%clk 0:00:25]} 34. Bxd6 {[%clk 0:00:06]}  Kxd6 {[%clk 0:00:25]} 35. Rg2 {[%clk 0:00:05]}  Rc1+ {[%clk 0:00:24]} 36. Rf1 {[%clk 0:00:05]}  Rxf1+ {[%clk 0:00:23]} 37. Kxf1 {[%clk 0:00:05]}  g6 {[%clk 0:00:24]} 38. Ke2 {[%clk 0:00:05]}  Rc8 {[%clk 0:00:20]} 39. Kd3 {[%clk 0:00:05]}  b4 {[%clk 0:00:18]} 40. Rg4 {[%clk 0:00:02]}  Rb8 {[%clk 0:00:17]} 0-1

[Event "January 9 Early 2024"]
[Site "https://www.chess.com"]
[Date "2024.01.11"]
[Round "10"]
[White "Khamdamova, Afruza"]
[Black "Bueno, Alfeu Junior Varela"]
[Result "0-1"]
[Board "111"]
[TimeControl "180+1"]
[WhiteFideId "14210444"]
[BlackFideId "2108879"]
[WhiteElo "2500"]
[BlackElo "2422"]
[WhiteTeam "UZB"]
[BlackTeam "BRA"]
[WhiteClock "0:00:39"]
[BlackClock "0:00:07"]

1. e4 {[%clk 0:02:59]}  e6 {[%clk 0:02:56]} 2. d4 {[%clk 0:02:58]}  d5 {[%clk 0:02:57]} 3. Nd2 {[%clk 0:02:58]}  Nf6 {[%clk 0:02:57]} 4. e5 {[%clk 0:02:57]}  Nfd7 {[%clk 0:02:58]} 5. Bd3 {[%clk 0:02:55]}  c5 {[%clk 0:02:58]} 6. c3 {[%clk 0:02:55]}  Nc6 {[%clk 0:02:59]} 7. Ne2 {[%clk 0:02:55]}  cxd4 {[%clk 0:03:00]} 8. cxd4 {[%clk 0:02:54]}  f6 {[%clk 0:03:00]} 9. exf6 {[%clk 0:02:54]}  Nxf6 {[%clk 0:03:01]} 10. O-O {[%clk 0:02:49]}  Bd6 {[%clk 0:03:02]} 11. Nf3 {[%clk 0:02:49]}  Qc7 {[%clk 0:03:02]} 12. Bg5 {[%clk 0:02:33]}  O-O {[%clk 0:03:02]} 13. Ng3 {[%clk 0:02:28]}  a6 {[%clk 0:02:51]} 14. Rc1 {[%clk 0:02:27]}  Bd7 {[%clk 0:02:33]} 15. Qc2 {[%clk 0:02:24]}  Be8 {[%clk 0:02:29]} 16. Bxf6 {[%clk 0:02:23]}  gxf6 {[%clk 0:02:30]} 17. Bxh7+ {[%clk 0:02:23]}  Qxh7 {[%clk 0:02:30]} 18. Qe2 {[%clk 0:02:04]}  Bf7 {[%clk 0:02:24]} 19. Rc3 {[%clk 0:02:01]}  Bxg3 {[%clk 0:02:19]} 20. fxg3 {[%clk 0:02:00]}  Rae8 {[%clk 0:02:16]} 21. Nh4 {[%clk 0:01:59]}  Bh5 {[%clk 0:01:34]} 22. Qf2 {[%clk 0:01:59]}  Qe4 {[%clk 0:01:12]} 23. g4 {[%clk 0:01:46]}  Bf7 {[%clk 0:01:03]} 24. Nf3 {[%clk 0:01:36]}  Qf4 {[%clk 0:00:53]} 25. Kh1 {[%clk 0:01:19]}  e5 {[%clk 0:00:53]} 26. dxe5 {[%clk 0:01:14]}  fxe5 {[%clk 0:00:54]} 27. Qg1 {[%clk 0:01:05]}  Bg6 {[%clk 0:00:48]} 28. Rcc1 {[%clk 0:00:56]}  Bd3 {[%clk 0:00:40]} 29. Rfe1 {[%clk 0:00:53]}  e4 {[%clk 0:00:35]} 30. Nd4 {[%clk 0:00:52]}  Qf2 {[%clk 0:00:35]} 31. Nxc6 {[%clk 0:00:48]}  Qxg1+ {[%clk 0:00:31]} 32. Kxg1 {[%clk 0:00:48]}  bxc6 {[%clk 0:00:31]} 33. Rxc6 {[%clk 0:00:48]}  e3 {[%clk 0:00:31]} 34. Rc3 {[%clk 0:00:48]}  Bc4 {[%clk 0:00:12]} 35. b3 {[%clk 0:00:47]}  Bb5 {[%clk 0:00:12]} 36. a4 {[%clk 0:00:47]}  d4 {[%clk 0:00:12]} 37. Rc5 {[%clk 0:00:45]}  d3 {[%clk 0:00:11]} 38. Rg5+ {[%clk 0:00:41]}  Kh7 {[%clk 0:00:10]} 39. Rc1 {[%clk 0:00:39]}  d2 {[%clk 0:00:07]} 40. Rc7+ {[%clk 0:00:39]}  Kh6 {[%clk 0:00:07]} 41. Rh5+ {[%clk 0:00:38]}  Kg6 {[%clk 0:00:08]} 42. h3 {[%clk 0:00:38]}  d1=Q+ {[%clk 0:00:07]} 43. Kh2 {[%clk 0:00:39]}  Qd6+ {[%clk 0:00:07]} 0-1

[Event "January 9 Early 2024"]
[Site "https://www.chess.com"]
[Date "2024.01.11"]
[Round "10"]
[White "Kvaloy, Aksel Bu"]
[Black "Sethuraman, S.P."]
[Result "0-1"]
[Board "112"]
[TimeControl "180+1"]
[WhiteFideId "1528815"]
[BlackFideId "5021596"]
[WhiteElo "2731"]
[BlackElo "2886"]
[WhiteTeam "NOR"]
[BlackTeam "IND"]
[WhiteClock "0:00:03"]
[BlackClock "0:00:23"]

1. d4 {[%clk 0:03:00]}  d5 {[%clk 0:02:59]} 2. Nf3 {[%clk 0:03:00]}  Nf6 {[%clk 0:02:59]} 3. Bf4 {[%clk 0:03:00]}  g6 {[%clk 0:02:58]} 4. e3 {[%clk 0:02:56]}  Bg7 {[%clk 0:02:58]} 5. c4 {[%clk 0:02:55]}  O-O {[%clk 0:02:52]} 6. Nc3 {[%clk 0:02:54]}  c5 {[%clk 0:02:51]} 7. cxd5 {[%clk 0:02:49]}  Nxd5 {[%clk 0:02:49]} 8. Nxd5 {[%clk 0:02:48]}  Qxd5 {[%clk 0:02:49]} 9. Be2 {[%clk 0:02:33]}  Nc6 {[%clk 0:02:47]} 10. O-O {[%clk 0:02:21]}  cxd4 {[%clk 0:02:46]} 11. exd4 {[%clk 0:02:16]}  Nxd4 {[%clk 0:02:46]} 12. Nxd4 {[%clk 0:02:14]}  Qxd4 {[%clk 0:02:46]} 13. Qxd4 {[%clk 0:02:13]}  Bxd4 {[%clk 0:02:47]} 14. Bf3 {[%clk 0:02:12]}  e5 {[%clk 0:02:24]} 15. Be3 {[%clk 0:01:57]}  Bxe3 {[%clk 0:02:01]} 16. fxe3 {[%clk 0:01:58]}  Be6 {[%clk 0:02:02]} 17. b3 {[%clk 0:01:50]}  Rab8 {[%clk 0:01:55]} 18. Rac1 {[%clk 0:01:48]}  Rfd8 {[%clk 0:01:46]} 19. Rc7 {[%clk 0:01:40]}  Rd3 {[%clk 0:01:46]} 20. Re1 {[%clk 0:01:29]}  Rd2 {[%clk 0:01:42]} 21. Re2 {[%clk 0:01:29]}  Rxe2 {[%clk 0:00:58]} 22. Bxe2 {[%clk 0:01:29]}  a5 {[%clk 0:00:57]} 23. Kf2 {[%clk 0:01:24]}  b6 {[%clk 0:00:53]} 24. Rc6 {[%clk 0:01:14]}  Kg7 {[%clk 0:00:52]} 25. e4 {[%clk 0:01:02]}  h5 {[%clk 0:00:50]} 26. h4 {[%clk 0:00:50]}  Kf8 {[%clk 0:00:49]} 27. Ke3 {[%clk 0:00:47]}  Ke7 {[%clk 0:00:48]} 28. Bb5 {[%clk 0:00:47]}  Rb7 {[%clk 0:00:44]} 29. Ba6 {[%clk 0:00:40]}  Rb8 {[%clk 0:00:44]} 30. Bb5 {[%clk 0:00:37]}  Kd8 {[%clk 0:00:40]} 31. g3 {[%clk 0:00:32]}  Rb7 {[%clk 0:00:36]} 32. Kd3 {[%clk 0:00:30]}  Bd7 {[%clk 0:00:30]} 33. Rd6 {[%clk 0:00:29]}  Ke7 {[%clk 0:00:30]} 34. Rd5 {[%clk 0:00:16]}  f6 {[%clk 0:00:31]} 35. Bxd7 {[%clk 0:00:10]}  Rxd7 {[%clk 0:00:30]} 36. Kc4 {[%clk 0:00:10]}  Rxd5 {[%clk 0:00:27]} 37. Kxd5 {[%clk 0:00:11]}  Kd7 {[%clk 0:00:27]} 38. a4 {[%clk 0:00:10]}  Ke7 {[%clk 0:00:27]} 39. Kc6 {[%clk 0:00:07]}  f5 {[%clk 0:00:27]} 40. exf5 {[%clk 0:00:03]}  e4 {[%clk 0:00:23]} 0-1

[Event "January 9 Early 2024"]
[Site "https://www.chess.com"]
[Date "2024.01.11"]
[Round "10"]
[White "Kleibel, Uwe"]
[Black "Dinu, Dumitru-Daniel"]
[Result "0-1"]
[Board "121"]
[TimeControl "180+1"]
[WhiteFideId "1270982"]
[BlackFideId "1208403"]
[WhiteElo "2379"]
[BlackElo "2497"]
[WhiteTeam "GER"]
[BlackTeam "ROU"]
[WhiteClock "0:00:37"]
[BlackClock "0:00:10"]

1. e4 {[%clk 0:03:00]}  c5 {[%clk 0:02:59]} 2. Nf3 {[%clk 0:03:00]}  d6 {[%clk 0:02:59]} 3. d4 {[%clk 0:02:59]}  Nf6 {[%clk 0:02:59]} 4. dxc5 {[%clk 0:02:56]}  Nxe4 {[%clk 0:02:59]} 5. cxd6 {[%clk 0:02:56]}  Nc6 {[%clk 0:02:59]} 6. Bd3 {[%clk 0:02:53]}  Nxd6 {[%clk 0:02:58]} 7. O-O {[%clk 0:02:53]}  g6 {[%clk 0:02:57]} 8. Re1 {[%clk 0:02:45]}  Bg7 {[%clk 0:02:56]} 9. Nc3 {[%clk 0:02:44]}  O-O {[%clk 0:02:52]} 10. Bg5 {[%clk 0:02:41]}  h6 {[%clk 0:02:44]} 11. Bh4 {[%clk 0:02:40]}  Nf5 {[%clk 0:02:39]} 12. Bxf5 {[%clk 0:02:32]}  Bxf5 {[%clk 0:02:38]} 13. Qxd8 {[%clk 0:02:31]}  Rfxd8 {[%clk 0:02:16]} 14. Bxe7 {[%clk 0:02:31]}  Rd7 {[%clk 0:02:14]} 15. Bh4 {[%clk 0:02:18]}  Nb4 {[%clk 0:02:08]} 16. Rad1 {[%clk 0:02:14]}  Rxd1 {[%clk 0:01:48]} 17. Rxd1 {[%clk 0:02:15]}  g5 {[%clk 0:01:47]} 18. Bg3 {[%clk 0:02:14]}  Nxc2 {[%clk 0:01:44]} 19. Nd5 {[%clk 0:02:03]}  Re8 {[%clk 0:01:18]} 20. h3 {[%clk 0:01:49]}  Kh7 {[%clk 0:00:46]} 21. Rc1 {[%clk 0:01:36]}  Rd8 {[%clk 0:00:28]} 22. Nc3 {[%clk 0:01:16]}  Nb4 {[%clk 0:00:25]} 23. a3 {[%clk 0:01:15]}  Nd3 {[%clk 0:00:24]} 24. Rd1 {[%clk 0:01:15]}  Bf6 {[%clk 0:00:22]} 25. Rd2 {[%clk 0:01:07]}  Rc8 {[%clk 0:00:19]} 26. Nd5 {[%clk 0:00:58]}  Bxb2 {[%clk 0:00:16]} 27. Ne7 {[%clk 0:00:59]}  Rc1+ {[%clk 0:00:16]} 28. Kh2 {[%clk 0:00:58]}  Be4 {[%clk 0:00:17]} 29. Ne5 {[%clk 0:00:47]}  Bxe5 {[%clk 0:00:14]} 30. Bxe5 {[%clk 0:00:45]}  Nxe5 {[%clk 0:00:14]} 31. Re2 {[%clk 0:00:46]}  Rc7 {[%clk 0:00:08]} 32. Rxe4 {[%clk 0:00:38]}  Rxe7 {[%clk 0:00:08]} 33. Kh1 {[%clk 0:00:36]}  Nc6 {[%clk 0:00:07]} 34. Rc4 {[%clk 0:00:36]}  Kg6 {[%clk 0:00:07]} 35. g3 {[%clk 0:00:36]}  Kf6 {[%clk 0:00:08]} 36. Kg2 {[%clk 0:00:37]}  Ke6 {[%clk 0:00:09]} 37. Rc5 {[%clk 0:00:37]}  Kd6 {[%clk 0:00:09]} 38. Rb5 {[%clk 0:00:38]}  b6 {[%clk 0:00:08]} 39. a4 {[%clk 0:00:38]}  Re5 {[%clk 0:00:09]} 40. Rb1 {[%clk 0:00:38]}  Nd4 {[%clk 0:00:08]} 41. Rd1 {[%clk 0:00:38]}  Kc5 {[%clk 0:00:09]} 42. f4 {[%clk 0:00:38]}  gxf4 {[%clk 0:00:09]} 43. gxf4 {[%clk 0:00:39]}  Rd5 {[%clk 0:00:09]} 44. Rc1+ {[%clk 0:00:37]}  Kb4 {[%clk 0:00:09]} 45. Rc7 {[%clk 0:00:37]}  a5 {[%clk 0:00:08]} 46. Rxf7 {[%clk 0:00:37]}  Kxa4 {[%clk 0:00:08]} 47. Rf6 {[%clk 0:00:37]}  b5 {[%clk 0:00:09]} 48. Rxh6 {[%clk 0:00:37]}  b4 {[%clk 0:00:09]} 49. Rb6 {[%clk 0:00:37]}  b3 {[%clk 0:00:10]} 50. h4 {[%clk 0:00:37]}  Nb5 {[%clk 0:00:10]} 0-1

[Event "January 9 Early 2024"]
[Site "https://www.chess.com"]
[Date "2024.01.11"]
[Round "10"]
[White "Kohler, Aran"]
[Black "Kjartansson, David"]
[Result "1-0"]
[Board "122"]
[TimeControl "180+1"]
[WhiteFideId "1002856"]
[BlackFideId "2301130"]
[WhiteElo "2279"]
[BlackElo "2416"]
[WhiteTeam "NED"]
[BlackTeam "ISL"]
[WhiteClock "0:00:35"]
[BlackClock "0:00:02"]

1. d4 {[%clk 0:03:00]}  d5 {[%clk 0:02:58]} 2. Nf3 {[%clk 0:03:01]}  Nf6 {[%clk 0:02:57]} 3. Bg5 {[%clk 0:03:01]}  c5 {[%clk 0:02:49]} 4. e3 {[%clk 0:03:00]}  Nc6 {[%clk 0:02:45]} 5. c3 {[%clk 0:03:00]}  Bf5 {[%clk 0:02:42]} 6. Nbd2 {[%clk 0:02:57]}  e6 {[%clk 0:02:42]} 7. Bb5 {[%clk 0:02:57]}  Qb6 {[%clk 0:02:41]} 8. Qa4 {[%clk 0:02:56]}  Nd7 {[%clk 0:02:34]} 9. O-O {[%clk 0:02:45]}  h6 {[%clk 0:02:31]} 10. Bh4 {[%clk 0:02:44]}  a6 {[%clk 0:01:37]} 11. Bxc6 {[%clk 0:02:42]}  bxc6 {[%clk 0:01:35]} 12. b3 {[%clk 0:02:18]}  Bd3 {[%clk 0:01:32]} 13. Rfe1 {[%clk 0:02:17]}  Bb5 {[%clk 0:01:31]} 14. Qa3 {[%clk 0:02:13]}  cxd4 {[%clk 0:01:31]} 15. Qb2 {[%clk 0:02:13]}  dxe3 {[%clk 0:01:31]} 16. fxe3 {[%clk 0:01:58]}  Bd6 {[%clk 0:01:26]} 17. c4 {[%clk 0:01:47]}  O-O {[%clk 0:01:16]} 18. cxb5 {[%clk 0:01:46]}  axb5 {[%clk 0:01:16]} 19. Bf2 {[%clk 0:01:36]}  c5 {[%clk 0:01:15]} 20. Qc2 {[%clk 0:01:32]}  e5 {[%clk 0:00:53]} 21. e4 {[%clk 0:01:20]}  d4 {[%clk 0:00:02]} 22. a4 {[%clk 0:01:20]}  b4 {[%clk 0:00:02]} 23. Nc4 {[%clk 0:01:19]}  Qc7 {[%clk 0:00:03]} 24. Red1 {[%clk 0:01:17]}  Be7 {[%clk 0:00:02]} 25. Ne1 {[%clk 0:01:16]}  f6 {[%clk 0:00:02]} 26. Nd3 {[%clk 0:01:16]}  Rfc8 {[%clk 0:00:03]} 27. a5 {[%clk 0:01:15]}  Nf8 {[%clk 0:00:04]} 28. Nb6 {[%clk 0:01:12]}  Rab8 {[%clk 0:00:04]} 29. Nxc8 {[%clk 0:01:11]}  Rxc8 {[%clk 0:00:05]} 30. a6 {[%clk 0:01:10]}  Ra8 {[%clk 0:00:06]} 31. Nxb4 {[%clk 0:01:09]}  Qb6 {[%clk 0:00:07]} 32. Nd5 {[%clk 0:01:08]}  Qd6 {[%clk 0:00:07]} 33. Nxe7+ {[%clk 0:01:06]}  Qxe7 {[%clk 0:00:08]} 34. Qc4+ {[%clk 0:01:06]}  Kh8 {[%clk 0:00:08]} 35. Rdc1 {[%clk 0:01:06]}  Ne6 {[%clk 0:00:09]} 36. Qd5 {[%clk 0:01:03]}  Ra7 {[%clk 0:00:09]} 37. b4 {[%clk 0:01:02]}  cxb4 {[%clk 0:00:08]} 38. Rc8+ {[%clk 0:01:02]}  Kh7 {[%clk 0:00:08]} 39. Qb5 {[%clk 0:00:53]}  b3 {[%clk 0:00:08]} 40. Qxb3 {[%clk 0:00:52]}  Nf4 {[%clk 0:00:07]} 41. Qb8 {[%clk 0:00:51]}  Kg6 {[%clk 0:00:02]} 42. h3 {[%clk 0:00:44]}  Qd7 {[%clk 0:00:02]} 43. Rh8 {[%clk 0:00:41]}  Qe7 {[%clk 0:00:01]} 44. Qe8+ {[%clk 0:00:40]}  Qxe8 {[%clk 0:00:01]} 45. Rxe8 {[%clk 0:00:40]}  d3 {[%clk 0:00:02]} 46. Rb8 {[%clk 0:00:39]}  Ne2+ {[%clk 0:00:01]} 47. Kf1 {[%clk 0:00:36]}  Nd4 {[%clk 0:00:02]} 48. Bxd4 {[%clk 0:00:35]} 1-0

[Event "January 9 Early 2024"]
[Site "https://www.chess.com"]
[Date "2024.01.11"]
[Round "10"]
[White "Klukin, Kirill"]
[Black "Martinez Ramirez, Lennis"]
[Result "1-0"]
[Board "123"]
[TimeControl "180+1"]
[WhiteFideId "24199273"]
[BlackFideId "3509079"]
[WhiteElo "2832"]
[BlackElo "2708"]
[WhiteTeam "RUS"]
[BlackTeam "CUB"]
[WhiteClock "0:00:08"]
[BlackClock "0:00:03"]

1. d4 {[%clk 0:03:00]}  Nf6 {[%clk 0:02:59]} 2. Nf3 {[%clk 0:03:00]}  d5 {[%clk 0:02:57]} 3. e3 {[%clk 0:02:59]}  c5 {[%clk 0:02:56]} 4. Bd3 {[%clk 0:02:59]}  g6 {[%clk 0:02:53]} 5. b3 {[%clk 0:02:58]}  Bg7 {[%clk 0:02:52]} 6. Bb2 {[%clk 0:02:58]}  O-O {[%clk 0:02:52]} 7. O-O {[%clk 0:02:57]}  cxd4 {[%clk 0:02:51]} 8. exd4 {[%clk 0:02:57]}  Nc6 {[%clk 0:02:51]} 9. Nbd2 {[%clk 0:02:57]}  Nb4 {[%clk 0:02:48]} 10. Be2 {[%clk 0:02:57]}  Bf5 {[%clk 0:02:48]} 11. c3 {[%clk 0:02:40]}  Nd3 {[%clk 0:02:47]} 12. Ba3 {[%clk 0:02:25]}  Nf4 {[%clk 0:02:46]} 13. Re1 {[%clk 0:02:11]}  Re8 {[%clk 0:02:34]} 14. Bb5 {[%clk 0:02:06]}  Bd7 {[%clk 0:02:32]} 15. Bxd7 {[%clk 0:02:05]}  Qxd7 {[%clk 0:02:32]} 16. Ne5 {[%clk 0:02:05]}  Qf5 {[%clk 0:02:31]} 17. Qf3 {[%clk 0:02:00]}  Rac8 {[%clk 0:02:17]} 18. Rac1 {[%clk 0:01:56]}  Bh6 {[%clk 0:01:57]} 19. Nf1 {[%clk 0:01:38]}  Ne4 {[%clk 0:01:36]} 20. Ne3 {[%clk 0:01:30]}  Qh5 {[%clk 0:01:00]} 21. N3g4 {[%clk 0:00:50]}  f6 {[%clk 0:00:45]} 22. Nxh6+ {[%clk 0:00:45]}  Qxh6 {[%clk 0:00:46]} 23. Ng4 {[%clk 0:00:43]}  Qg5 {[%clk 0:00:46]} 24. h4 {[%clk 0:00:30]}  Qxh4 {[%clk 0:00:18]} 25. Qxf4 {[%clk 0:00:30]}  Kg7 {[%clk 0:00:18]} 26. Qf3 {[%clk 0:00:21]}  h5 {[%clk 0:00:11]} 27. Ne3 {[%clk 0:00:18]}  e6 {[%clk 0:00:07]} 28. c4 {[%clk 0:00:17]}  Nd2 {[%clk 0:00:03]} 29. Qg3 {[%clk 0:00:14]}  Qxd4 {[%clk 0:00:02]} 30. Rcd1 {[%clk 0:00:10]}  dxc4 {[%clk 0:00:01]} 31. bxc4 {[%clk 0:00:08]}  Rxc4 {[%clk 0:00:01]} 32. Nxc4 {[%clk 0:00:07]}  Qxc4 {[%clk 0:00:01]} 33. Rxd2 {[%clk 0:00:07]}  e5 {[%clk 0:00:01]} 34. Red1 {[%clk 0:00:07]}  Kh6 {[%clk 0:00:02]} 35. Qe3+ {[%clk 0:00:07]}  g5 {[%clk 0:00:03]} 36. Qd3 {[%clk 0:00:07]}  Qc6 {[%clk 0:00:03]} 37. Qf3 {[%clk 0:00:08]}  Qe6 {[%clk 0:00:03]} 38. Rd6 {[%clk 0:00:08]} 1-0

[Event "January 9 Early 2024"]
[Site "https://www.chess.com"]
[Date "2024.01.11"]
[Round "10"]
[White "Kurmangaliyeva, Liya"]
[Black "Jakubowski, Krzysztof"]
[Result "0-1"]
[Board "128"]
[TimeControl "180+1"]
[WhiteFideId "13725831"]
[BlackFideId "1112848"]
[WhiteElo "2543"]
[BlackElo "2677"]
[WhiteTeam "KAZ"]
[BlackTeam "POL"]
[WhiteClock "0:00:08"]
[BlackClock "0:00:22"]

1. d4 {[%clk 0:02:59]}  Nf6 {[%clk 0:02:59]} 2. Nf3 {[%clk 0:02:57]}  b6 {[%clk 0:02:59]} 3. g3 {[%clk 0:02:56]}  Bb7 {[%clk 0:02:58]} 4. Bg2 {[%clk 0:02:57]}  c5 {[%clk 0:02:58]} 5. O-O {[%clk 0:02:49]}  cxd4 {[%clk 0:02:57]} 6. Qxd4 {[%clk 0:02:48]}  d6 {[%clk 0:02:50]} 7. c4 {[%clk 0:02:40]}  Nbd7 {[%clk 0:02:50]} 8. Nc3 {[%clk 0:02:39]}  g6 {[%clk 0:02:50]} 9. b3 {[%clk 0:02:15]}  Bg7 {[%clk 0:02:49]} 10. Bb2 {[%clk 0:02:15]}  O-O {[%clk 0:02:47]} 11. Qd2 {[%clk 0:02:15]}  a6 {[%clk 0:02:45]} 12. Rfd1 {[%clk 0:02:09]}  Rc8 {[%clk 0:02:41]} 13. Nd5 {[%clk 0:02:06]}  b5 {[%clk 0:02:38]} 14. Nxf6+ {[%clk 0:01:59]}  Nxf6 {[%clk 0:02:37]} 15. Rac1 {[%clk 0:01:40]}  Be4 {[%clk 0:02:20]} 16. cxb5 {[%clk 0:01:26]}  axb5 {[%clk 0:02:19]} 17. Qb4 {[%clk 0:01:20]}  Rb8 {[%clk 0:02:18]} 18. Ba1 {[%clk 0:01:14]}  d5 {[%clk 0:02:13]} 19. Be5 {[%clk 0:01:10]}  Rb7 {[%clk 0:02:09]} 20. a4 {[%clk 0:01:04]}  Qd7 {[%clk 0:02:02]} 21. a5 {[%clk 0:01:04]}  Ra8 {[%clk 0:02:02]} 22. Rc5 {[%clk 0:00:51]}  Qe6 {[%clk 0:01:51]} 23. Rdc1 {[%clk 0:00:36]}  Bxf3 {[%clk 0:01:39]} 24. Bxf6 {[%clk 0:00:36]}  exf6 {[%clk 0:01:38]} 25. Bxf3 {[%clk 0:00:29]}  Rd8 {[%clk 0:01:30]} 26. Rc6 {[%clk 0:00:27]}  Qe5 {[%clk 0:01:26]} 27. a6 {[%clk 0:00:27]}  Ra7 {[%clk 0:01:25]} 28. Qc5 {[%clk 0:00:26]}  Qe7 {[%clk 0:01:21]} 29. Qxb5 {[%clk 0:00:24]}  Bf8 {[%clk 0:01:17]} 30. Qb6 {[%clk 0:00:24]}  Rda8 {[%clk 0:01:15]} 31. Rc7 {[%clk 0:00:23]}  Qa3 {[%clk 0:01:13]} 32. Rxa7 {[%clk 0:00:22]}  Qxc1+ {[%clk 0:01:13]} 33. Kg2 {[%clk 0:00:22]}  Rxa7 {[%clk 0:01:07]} 34. Qxa7 {[%clk 0:00:23]}  Bc5 {[%clk 0:01:07]} 35. Qb8+ {[%clk 0:00:22]}  Kg7 {[%clk 0:01:07]} 36. a7 {[%clk 0:00:22]}  Qe1 {[%clk 0:00:53]} 37. a8=Q {[%clk 0:00:19]}  Qxf2+ {[%clk 0:00:53]} 38. Kh3 {[%clk 0:00:20]}  Qf1+ {[%clk 0:00:53]} 39. Bg2 {[%clk 0:00:20]}  Qf5+ {[%clk 0:00:47]} 40. g4 {[%clk 0:00:21]}  Qe6 {[%clk 0:00:40]} 41. Qxd5 {[%clk 0:00:20]}  Qe3+ {[%clk 0:00:39]} 42. Qf3 {[%clk 0:00:20]}  Qh6+ {[%clk 0:00:38]} 43. Kg3 {[%clk 0:00:19]}  Qd2 {[%clk 0:00:37]} 44. Qc8 {[%clk 0:00:12]}  Bd6+ {[%clk 0:00:31]} 45. Kf2 {[%clk 0:00:13]}  Bxh2 {[%clk 0:00:27]} 46. Qcc3 {[%clk 0:00:11]}  Qd6 {[%clk 0:00:25]} 47. g5 {[%clk 0:00:08]}  Qb6+ {[%clk 0:00:22]} 48. Kf1 {[%clk 0:00:08]}  Qg1# {[%clk 0:00:22]} 0-1